fUST/lending_fUST_20260420
["ID","MTS","AMOUNT","RATE_DAILY","PERIOD"]
[420855796,1776643843586,-3569.86,0.00019178,2]
[420855799,1776643843595,-915.04,0.00019178,2]
[420855802,1776643843605,-253.11320639,0.00019178,2]
[420855804,1776643843614,-842.05,0.00019178,2]
[420855806,1776643843624,-949.1,0.00019178,2]
[420855808,1776643843634,-500.0,0.00019178,2]
[420855810,1776643843644,-500.0,0.00019178,2]
[420855812,1776643843653,-228.35133868,0.00019178,2]
[420855814,1776643843663,-15972.91,0.00019178,2]
[420855816,1776643843672,-500.0,0.00019178,2]
[420855818,1776643843681,-549.20054103,0.00019178,2]
[420855820,1776643843691,-9.13592475,0.00019178,2]
[420855832,1776643844503,-490.86407525,0.00019178,2]
[420855833,1776643844512,-500.0,0.00019178,2]
[420855834,1776643844522,-500.0,0.00019178,2]
[420855835,1776643844531,-500.0,0.00019178,2]
[420855836,1776643844540,-500.0,0.00019178,2]
[420855837,1776643844550,-500.0,0.00019178,2]
[420855838,1776643844560,-739.37,0.00019178,2]
[420855839,1776643844569,-2297.87,0.00019178,2]
[420855840,1776643844578,-500.0,0.00019178,2]
[420855841,1776643844587,-469.87872133,0.00019178,2]
[420855842,1776643844597,-500.0,0.00019178,2]
[420855843,1776643844606,-10319.56,0.00019178,2]
[420855844,1776643844615,-500.0,0.00019178,2]
[420855845,1776643844624,-9991.3062169,0.00019178,2]
[420855846,1776643844636,-2060.3243339,0.00019178,2]
[420855847,1776643844647,-1074.91166387,0.00019178,2]
[420855848,1776643844659,-1580.71166212,0.00019178,2]
[420855849,1776643844671,-3845.15198489,0.00019178,2]
[420855861,1776643846237,-5411.62413832,0.00019178,2]
[420855862,1776643846249,-500.0,0.00019178,2]
[420855863,1776643846260,-6283.38,0.00019178,2]
[420855864,1776643846269,-229.52676662,0.00019178,2]
[420855941,1776645032641,-5000.0,9.603e-05,2]
[420855942,1776645032653,-556.0,9.7e-05,2]
[420855943,1776645032662,-150.0,9.8e-05,2]
[420855944,1776645032672,-840.0,9.999e-05,2]
[420855945,1776645032682,-1034.24517994,0.0001,2]
[420855946,1776645032691,-783.2683826,0.0001,2]
[420855947,1776645032701,-300.0,0.00010097,2]
[420855948,1776645032710,-183.2458546,0.00010209,2]
[420855949,1776645032721,-425.09362606,0.00010209,2]
[420855950,1776645032733,-425.90569928,0.00010209,2]
[420855951,1776645032743,-783.2683826,0.00010293,2]
[420855952,1776645032753,-300.0,0.00010417,2]
[420855953,1776645032762,-300.0,0.00010417,2]
[420855954,1776645032772,-1034.24517994,0.00010418,2]
[420855955,1776645032781,-783.2683826,0.00010586,2]
[420855956,1776645033001,-1034.24517994,0.00010626,2]
[420855957,1776645033012,-2451.64672252,0.00010724,2]
[420855958,1776645033023,-2719.4386483,0.00010724,2]
[420855959,1776645033035,-324.47130679,0.00010724,2]
[420855960,1776645033186,-500.0,0.00010724,2]
[420855961,1776645033197,-3562.98502099,0.00010724,2]
[420855962,1776645033208,-1034.24517994,0.00010835,2]
[420855963,1776645033218,-783.2683826,0.00010879,7]
[420855964,1776645033228,-1034.24517994,0.00011044,7]
[420855965,1776645033238,-783.2683826,0.00011172,7]
[420855966,1776645033248,-530.2127936,0.00011253,7]
[420856000,1776645038703,-504.03238634,0.00011253,7]
[420856001,1776645038714,-1034.24517994,0.00011461,7]
[420856002,1776645038723,-783.2683826,0.00011465,7]
[420856003,1776645038733,-1034.24517994,0.0001167,7]
[420856004,1776645038744,-172.266028,0.00011746,2]
[420856005,1776645038755,-783.2683826,0.00011758,7]
[420856006,1776645038772,-177.0,0.000118,2]
[420856007,1776645038781,-1034.24517994,0.00011879,7]
[420856008,1776645038791,-783.2683826,0.00012051,7]
[420856009,1776645038800,-1034.24517994,0.00012088,7]
[420856010,1776645038809,-618.98754224,0.00012296,7]
[420856011,1776645038822,-415.2576377,0.00012296,7]
[420856012,1776645038831,-783.2683826,0.00012344,7]
[420856014,1776645038841,-359.75693688,0.00012346,2]
[420856060,1776645040876,-240.24306312,0.00012346,2]
[420856062,1776645040886,-458.9215886,0.00012505,7]
[420856068,1776645040933,-560.6225,0.00012505,7]
[420856335,1776645043504,-14.70109134,0.00012505,7]
[420856337,1776645043514,-783.2683826,0.00012637,14]
[420856339,1776645043524,-1034.24517994,0.00012714,7]
[420856341,1776645043533,-209.32595594,0.000129,2]
[420856343,1776645043542,-1034.24517994,0.00012923,7]
[420856345,1776645043552,-783.2683826,0.0001293,14]
[420856347,1776645043561,-1034.24517994,0.00013131,14]
[420856349,1776645043570,-209.32595593,0.00013207,2]
[420856351,1776645043579,-783.2683826,0.00013223,14]
[420856352,1776645043588,-1034.24517994,0.0001334,14]
[420856353,1776645043598,-287.84706216,0.00013365,14]
[420856354,1776645043608,-783.2683826,0.00013516,14]
[420856355,1776645043618,-1034.24517994,0.00013549,14]
[420856356,1776645043628,-720.0,0.00013581,2]
[420856357,1776645043638,-1000.0,0.00013699,2]
[420856358,1776645043647,-1034.24517994,0.00013758,14]
[420856359,1776645043656,-783.2683826,0.00013809,14]
[420856360,1776645043666,-1034.24517994,0.00013966,14]
[420856361,1776645043675,-300.0,0.00013972,2]
[420856362,1776645043684,-166.4557814,0.00014096,2]
[420856363,1776645043693,-783.2683826,0.00014102,14]
[420856364,1776645043703,-1034.24517994,0.00014175,14]
[420856365,1776645043712,-1034.24517994,0.00014384,14]
[420856366,1776645043721,-783.2683826,0.00014395,30]
[420856367,1776645043731,-1034.24517994,0.00014593,14]
[420856368,1776645043740,-783.2683826,0.00014688,30]
[420856369,1776645043749,-209.32595593,0.00014767,2]
[420856370,1776645043759,-1034.24517994,0.00014802,14]
[420856371,1776645043768,-864.0,0.00014939,2]
[420856372,1776645043777,-783.2683826,0.00014981,30]
[420856373,1776645043786,-1034.24517994,0.0001501,14]
[420856374,1776645043796,-1034.24517994,0.00015219,30]
[420856375,1776645043806,-783.2683826,0.00015274,30]
[420856376,1776645043815,-1034.24517994,0.00015428,30]
[420856377,1776645043824,-783.2683826,0.00015566,30]
[420856378,1776645043834,-1034.24517994,0.00015637,30]
[420856379,1776645043843,-10.55982133,0.00015845,30]
[420856380,1776645043866,-1023.68535861,0.00015845,30]
[420856381,1776645043875,-783.2683826,0.00015859,30]
[420856382,1776645043884,-1034.24517994,0.00016054,30]
[420856383,1776645043894,-783.2683826,0.00016152,60]
[420856390,1776645044106,-1034.24517994,0.00016263,30]
[420856392,1776645044115,-209.32595593,0.00016328,2]
[420856394,1776645044125,-1000.0,0.00016433,2]
[420856396,1776645044134,-783.2683826,0.00016445,60]
[420856398,1776645044144,-1034.24517994,0.00016472,30]
[420856400,1776645044153,-1034.24517994,0.0001668,30]
[420856402,1776645044162,-783.2683826,0.00016738,60]
[420856404,1776645044171,-496.9344353,0.00016889,30]
[420856462,1776645046668,-989.92404718,0.00012771,2]
[420856699,1776646232735,-305.09082963,0.00011206,2]
[420856700,1776646232753,-384.74046081,0.00011206,2]
[420856701,1776646232763,-4801.25953919,0.00011319,2]
[420856705,1776646238885,-198.74046081,0.00011319,2]
[420856706,1776646238895,-465.16099046,0.00011319,2]
[420856709,1776646241203,-113.83900954,0.00011319,2]
[420856710,1776646241213,-150.0,0.00011725,2]
[420856711,1776646241223,-230.83,0.000126,2]
[420856712,1776646241232,-171.01062976,0.00013592,2]
[420856713,1776646241242,-146.36726285,0.00013699,2]
[420856800,1776646243838,-407.64,0.00013699,2]
[420856802,1776646243849,-382.91828592,0.00013699,2]
[420857096,1776646246968,-579.40833256,0.00011206,2]
[420857099,1776646247133,-2545.72520708,0.00011206,2]
[420857100,1776646247148,-483.90748233,0.00011206,2]
[420857123,1776646283310,1731.7,4.008e-05,2]
[420857670,1776647432277,-701.5035864,9.961e-05,2]
[420857671,1776647432290,-4298.4964136,9.961e-05,2]
[420857672,1776647432301,-165.19988571,0.0001,30]
[420857776,1776647438411,-248.70401642,0.0001,30]
[420857778,1776647438422,-561.0,0.00010062,2]
[420857780,1776647438432,-150.0,0.00010165,2]
[420857782,1776647438442,-300.0,0.00011482,2]
[420857784,1776647438452,-286.29598358,0.00011483,2]
[420857859,1776647443370,-1195.92778728,0.00011368,2]
[420857931,1776647446208,-3392.34186895,0.00011368,2]
[420858191,1776648632460,-662.94812807,9.166e-05,2]
[420858194,1776648632469,-37.55186693,9.166e-05,2]
[420858196,1776648632481,-510.44813307,9.166e-05,2]
[420858198,1776648632490,-5000.0,9.259e-05,2]
[420858199,1776648632500,-300.0,9.352e-05,2]
[420858201,1776648632510,-776.0,9.352e-05,2]
[420858203,1776648632520,-1771.16052773,9.353e-05,2]
[420858269,1776648638823,-1509.5865512,9.353e-05,2]
[420858271,1776648638835,-2869.71691312,9.353e-05,2]
[420858281,1776648639056,-150.0,9.698e-05,2]
[420858282,1776648639066,-751.5534476,9.845e-05,2]
[420858283,1776648639077,-1781.05655342,9.845e-05,2]
[420858284,1776648639089,-204.77528125,9.845e-05,2]
[420858285,1776648639098,-420.0,0.00010287,2]
[420858286,1776648639107,-152.0,0.00011129,7]
[420858287,1776648639116,-152.0,0.00011129,7]
[420858288,1776648639126,-152.0,0.00011129,7]
[420858289,1776648639135,-785.96693237,0.00011129,2]
[420858290,1776648639144,-152.0,0.00011143,7]
[420858291,1776648639154,-152.0,0.00011143,7]
[420858292,1776648639163,-152.0,0.00011143,7]
[420858293,1776648639172,-300.0,0.00011315,2]
[420858294,1776648639182,-251.066941,0.00011658,2]
[420858295,1776648639191,-177.0,0.00011698,2]
[420858296,1776648639200,-152.0,0.00011703,7]
[420858297,1776648639209,-152.0,0.00011703,7]
[420858298,1776648639219,-152.0,0.00011703,7]
[420858299,1776648639229,-152.0,0.00011723,7]
[420858300,1776648639238,-152.0,0.00011723,7]
[420858301,1776648639249,-152.0,0.00011723,7]
[420858302,1776648639259,-152.0,0.00011723,7]
[420858303,1776648639269,-152.0,0.00011723,7]
[420858304,1776648639279,-152.0,0.00011723,7]
[420858305,1776648639289,-152.0,0.00011723,7]
[420858306,1776648639299,-152.0,0.00011723,7]
[420858307,1776648639308,-152.0,0.00011723,7]
[420858308,1776648639318,-152.0,0.00011723,7]
[420858309,1776648639327,-152.0,0.00011723,7]
[420858310,1776648639337,-152.0,0.00011723,7]
[420858311,1776648639346,-151.0,0.00011723,2]
[420858312,1776648639357,-500.0,0.00011936,2]
[420858313,1776648639366,-300.0,0.00011936,2]
[420858314,1776648639375,-300.0,0.00011936,2]
[420858315,1776648639386,-300.0,0.00011936,2]
[420858316,1776648639395,-300.0,0.00011936,2]
[420858317,1776648639405,-300.0,0.00011936,2]
[420858318,1776648639414,-300.0,0.00011936,2]
[420858319,1776648639423,-300.0,0.00011936,2]
[420858320,1776648639433,-300.0,0.00011936,2]
[420858321,1776648639442,-300.0,0.00011936,2]
[420858322,1776648639452,-300.0,0.00011936,2]
[420858323,1776648639461,-300.0,0.00011936,2]
[420858324,1776648639471,-300.0,0.00011936,2]
[420858325,1776648639481,-300.0,0.00011936,2]
[420858326,1776648639491,-300.0,0.00011936,2]
[420858327,1776648639500,-300.0,0.00011936,2]
[420858328,1776648639510,-251.066941,0.00012149,2]
[420858329,1776648639520,-152.0,0.00012165,7]
[420858330,1776648639529,-152.0,0.00012165,7]
[420858331,1776648639539,-152.0,0.00012165,7]
[420858332,1776648639548,-251.066941,0.0001264,2]
[420858333,1776648639558,-22905.6763977,0.00013079,2]
[420858334,1776648639567,-251.066941,0.00013131,2]
[420858335,1776648639577,-282.96,0.00013457,2]
[420858336,1776648639587,-251.066941,0.00013622,2]
[420858337,1776648639596,-204.0,0.00013698,2]
[420858338,1776648639607,-1000.0,0.00013699,2]
[420858339,1776648639616,-152.0,0.00013702,7]
[420858340,1776648639626,-152.0,0.00013702,7]
[420858341,1776648639636,-152.0,0.00013702,7]
[420858342,1776648639646,-1000.0,0.00013805,2]
[420858343,1776648639656,-152.0,0.00013807,7]
[420858344,1776648639667,-152.0,0.00013807,7]
[420858345,1776648639677,-152.0,0.00013807,7]
[420858346,1776648639687,-169.78,0.00013873,2]
[420858347,1776648639697,-251.066941,0.00014112,2]
[420858348,1776648639707,-152.0,0.00014154,7]
[420858349,1776648639716,-152.0,0.00014154,7]
[420858350,1776648639726,-152.0,0.00014154,7]
[420858351,1776648639735,-152.0,0.00014154,7]
[420858352,1776648639745,-152.0,0.00014154,7]
[420858353,1776648639755,-152.0,0.00014154,7]
[420858354,1776648639765,-152.0,0.00014154,7]
[420858355,1776648639775,-152.0,0.00014154,7]
[420858356,1776648639785,-152.0,0.00014154,7]
[420858357,1776648639794,-152.0,0.00014154,7]
[420858358,1776648639803,-159.0,0.000147,2]
[420858359,1776648639813,-159.0,0.000147,2]
[420858360,1776648639822,-152.0,0.00015464,7]
[420858361,1776648639831,-152.0,0.00015464,7]
[420858362,1776648639841,-152.0,0.00015509,7]
[420858363,1776648639849,-152.0,0.00015509,7]
[420858364,1776648639858,-152.0,0.00015509,7]
[420858365,1776648639867,-152.0,0.00015509,7]
[420858366,1776648639875,-152.0,0.00015509,7]
[420858367,1776648639884,-152.0,0.00015509,7]
[420858368,1776648639893,-152.0,0.00015509,7]
[420858369,1776648639902,-152.0,0.00015509,7]
[420858370,1776648639912,-152.0,0.00015509,7]
[420858371,1776648639921,-152.0,0.00015624,7]
[420858372,1776648639930,-152.0,0.00015624,7]
[420858373,1776648639939,-152.0,0.00015624,7]
[420858374,1776648639948,-152.0,0.00015624,7]
[420858375,1776648639958,-231.0,0.00015698,2]
[420858376,1776648639967,-159.0,0.000159,2]
[420858377,1776648639977,-160.13898883,0.000159,2]
[420858378,1776648639986,-325.2970195,0.00016493,2]
[420858379,1776648639995,-159.0,0.000166,2]
[420858380,1776648640004,-159.0,0.000166,3]
[420858381,1776648640014,-857.76,0.000166,2]
[420858382,1776648640023,-537.31074464,0.00016889,30]
[420858383,1776648640035,-358.43822929,0.00016982,2]
[420858384,1776648640044,-783.2683826,0.00017031,60]
[420858385,1776648640053,-1034.24517994,0.00017098,30]
[420858386,1776648640062,-500.0,0.00017215,2]
[420858387,1776648640072,-500.0,0.00017215,2]
[420858388,1776648640081,-502.83598002,0.00017273,2]
[420858389,1776648640092,-500.0,0.00017273,2]
[420858390,1776648640101,-502.44216819,0.00017273,2]
[420858391,1776648640110,-500.0,0.00017273,2]
[420858392,1776648640120,-500.0,0.00017273,2]
[420858393,1776648640129,-500.68971163,0.00017273,2]
[420858394,1776648640138,-500.0,0.00017273,2]
[420858395,1776648640148,-1034.24517994,0.00017307,60]
[420858396,1776648640157,-783.2683826,0.00017324,60]
[420858397,1776648640166,-151.0,0.00017373,2]
[420858398,1776648640175,-325.1254671,0.0001739,2]
[420858399,1776648640185,-325.6474745,0.0001739,2]
[420858400,1776648640194,-1034.24517994,0.00017515,60]
[420858401,1776648640204,-155.0,0.00017522,2]
[420858402,1776648640212,-783.2683826,0.00017617,60]
[420858403,1776648640222,-152.0,0.00017627,7]
[420858404,1776648640232,-152.0,0.00017627,7]
[420858405,1776648640242,-152.0,0.00017627,7]
[420858406,1776648640251,-152.0,0.00017627,7]
[420858407,1776648640261,-152.0,0.00017627,7]
[420858408,1776648640270,-152.0,0.00017627,7]
[420858409,1776648640280,-152.0,0.00017627,7]
[420858410,1776648640291,-152.0,0.00017627,7]
[420858411,1776648640300,-152.0,0.00017627,7]
[420858412,1776648640310,-258.0,0.00017698,2]
[420858414,1776648640319,-1034.24517994,0.00017724,60]
[420858416,1776648640328,-500.0,0.00017767,2]
[420858417,1776648640337,-596.05401197,0.00017767,2]
[420858418,1776648640346,-235.9377,0.00017767,2]
[420858419,1776648640355,-500.0,0.00017767,2]
[420858420,1776648640365,-500.0,0.00017767,2]
[420858421,1776648640374,-500.0,0.00017767,2]
[420858422,1776648640383,-200.84663778,0.00017767,2]
[420858423,1776648640393,-500.0,0.00017767,2]
[420858424,1776648640402,-500.0,0.00017767,2]
[420858425,1776648640412,-521.30574985,0.00017767,2]
[420858426,1776648640421,-500.0,0.00017767,2]
[420858427,1776648640430,-500.0,0.00017767,2]
[420858428,1776648640439,-500.0,0.00017767,2]
[420858429,1776648640448,-500.0,0.00017767,2]
[420858430,1776648640458,-500.0,0.00017767,2]
[420858431,1776648640467,-500.0,0.00017767,2]
[420858432,1776648640476,-425.50705677,0.00017767,2]
[420858433,1776648640485,-500.0,0.00017767,2]
[420858434,1776648640494,-300.0,0.00017767,2]
[420858435,1776648640503,-500.0,0.00017767,2]
[420858436,1776648640512,-500.0,0.00017767,2]
[420858437,1776648640522,-500.0,0.00017767,2]
[420858438,1776648640531,-500.0,0.00017767,2]
[420858439,1776648640540,-500.0,0.00017767,2]
[420858440,1776648640549,-500.0,0.00017767,2]
[420858441,1776648640559,-500.0,0.00017767,2]
[420858442,1776648640568,-198.10424155,0.00017767,2]
[420858443,1776648640577,-500.0,0.00017767,2]
[420858444,1776648640587,-500.0,0.00017767,2]
[420858445,1776648640596,-500.0,0.00017767,2]
[420858446,1776648640605,-500.0,0.00017767,2]
[420858447,1776648640615,-500.0,0.00017767,2]
[420858448,1776648640624,-500.0,0.00017767,2]
[420858449,1776648640633,-500.0,0.00017767,2]
[420858450,1776648640643,-500.0,0.00017767,2]
[420858451,1776648640652,-500.0,0.00017767,2]
[420858452,1776648640662,-500.0,0.00017767,2]
[420858453,1776648640671,-500.0,0.00017767,2]
[420858454,1776648640681,-500.0,0.00017767,2]
[420858455,1776648640690,-500.0,0.00017767,2]
[420858456,1776648640699,-500.0,0.00017767,2]
[420858457,1776648640709,-500.0,0.00017767,2]
[420858458,1776648640719,-500.0,0.00017767,2]
[420858459,1776648640728,-500.0,0.00017767,2]
[420858460,1776648640738,-500.0,0.00017767,2]
[420858461,1776648640748,-500.0,0.00017767,2]
[420858462,1776648640758,-500.0,0.00017767,2]
[420858463,1776648640767,-500.0,0.00017767,2]
[420858464,1776648640778,-500.0,0.00017767,2]
[420858465,1776648640788,-373.8814258,0.00017767,2]
[420858466,1776648640798,-500.0,0.00017767,2]
[420858467,1776648640807,-500.0,0.00017767,2]
[420858468,1776648640817,-282.93817391,0.00017767,2]
[420858469,1776648640827,-500.0,0.00017767,2]
[420858470,1776648640837,-500.0,0.00017767,2]
[420858471,1776648640847,-500.0,0.00017767,2]
[420858472,1776648640857,-500.0,0.00017767,2]
[420858473,1776648640867,-500.0,0.00017767,2]
[420858474,1776648640877,-500.0,0.00017767,2]
[420858475,1776648640887,-2040.41367395,0.0001781,2]
[420858476,1776648640896,-1000.0,0.00017821,2]
[420858477,1776648640906,-1000.0,0.00017821,2]
[420858478,1776648640916,-1000.0,0.00017821,2]
[420858479,1776648640926,-3501.1,0.000179,2]
[420858480,1776648640935,-783.2683826,0.0001791,120]
[420858481,1776648640945,-1034.24517994,0.00017933,60]
[420858482,1776648640955,-160.0,0.00017983,7]
[420858483,1776648640964,-2658.468216,0.00017983,7]
[420858484,1776648640975,-228.537423,0.00017983,2]
[420858485,1776648640984,-5156.936432,0.00017983,7]
[420858486,1776648640993,-2202.0,0.00018011,2]
[420858487,1776648641003,-645.0,0.00018011,2]
[420858488,1776648641012,-1408.0,0.00018011,2]
[420858489,1776648641022,-558.0,0.00018011,2]
[420858490,1776648641031,-184.0,0.00018011,2]
[420858491,1776648641041,-536.777,0.00018011,2]
[420858492,1776648641050,-438.72361104,0.00018075,2]
[420858493,1776648641060,-571.0908707,0.00018075,2]
[420858494,1776648641069,-500.0,0.00018075,2]
[420858495,1776648641079,-571.0908707,0.00018075,2]
[420858496,1776648641089,-571.0908707,0.00018075,2]
[420858497,1776648641098,-321.44776245,0.00018075,2]
[420858498,1776648641108,-571.0908707,0.00018075,2]
[420858499,1776648641118,-571.0908707,0.00018075,2]
[420858500,1776648641141,-571.0908707,0.00018075,2]
[420858501,1776648641151,-571.0908707,0.00018075,2]
[420858502,1776648641161,-571.0908707,0.00018075,2]
[420858503,1776648641172,-571.0908707,0.00018075,2]
[420858504,1776648641182,-571.0908707,0.00018075,2]
[420858505,1776648641192,-571.0908707,0.00018075,2]
[420858506,1776648641202,-571.0908707,0.00018075,2]
[420858507,1776648641212,-571.0908707,0.00018075,2]
[420858508,1776648641223,-571.0908707,0.00018075,2]
[420858509,1776648641233,-571.0908707,0.00018075,2]
[420858510,1776648641243,-571.0908707,0.00018075,2]
[420858511,1776648641254,-571.0908707,0.00018075,2]
[420858512,1776648641264,-571.0908707,0.00018075,2]
[420858513,1776648641274,-571.0908707,0.00018075,2]
[420858514,1776648641284,-571.0908707,0.00018075,2]
[420858515,1776648641294,-571.0908707,0.00018075,2]
[420858516,1776648641304,-571.0908707,0.00018075,2]
[420858517,1776648641314,-685.30904482,0.00018075,2]
[420858518,1776648641324,-685.30904482,0.00018075,2]
[420858519,1776648641334,-685.30904482,0.00018075,2]
[420858520,1776648641344,-685.30904482,0.00018075,2]
[420858521,1776648641354,-685.30904482,0.00018075,2]
[420858522,1776648641364,-500.0,0.00018076,30]
[420858523,1776648641374,-500.0,0.00018076,30]
[420858524,1776648641384,-236.0,0.00018076,30]
[420858525,1776648641394,-500.0,0.00018076,30]
[420858526,1776648641403,-500.0,0.00018076,30]
[420858527,1776648641413,-161.05869814,0.00018076,30]
[420858528,1776648641423,-500.0,0.00018076,30]
[420858529,1776648641433,-500.0,0.00018076,30]
[420858530,1776648641442,-500.0,0.00018076,30]
[420858531,1776648641452,-500.0,0.00018076,30]
[420858532,1776648641461,-500.0,0.00018076,30]
[420858533,1776648641471,-500.0,0.00018076,30]
[420858534,1776648641481,-500.0,0.00018076,30]
[420858535,1776648641491,-522.73072976,0.00018076,30]
[420858536,1776648641501,-500.0,0.00018076,30]
[420858537,1776648641511,-500.0,0.00018076,30]
[420858538,1776648641521,-500.0,0.00018076,30]
[420858539,1776648641531,-443.46687558,0.00018076,30]
[420858540,1776648641541,-151.5,0.00018076,30]
[420858541,1776648641551,-151.5,0.00018076,30]
[420858542,1776648641561,-151.5,0.00018076,30]
[420858543,1776648641570,-151.5,0.00018076,30]
[420858544,1776648641580,-246.86277426,0.00018076,30]
[420858545,1776648641591,-151.5,0.00018076,30]
[420858546,1776648641600,-151.5,0.00018076,30]
[420858547,1776648641610,-151.5,0.00018076,30]
[420858548,1776648641620,-275.27253418,0.00018076,30]
[420858549,1776648641630,-500.0,0.00018115,5]
[420858550,1776648641640,-2040.41367392,0.00018127,2]
[420858551,1776648641650,-1034.24517994,0.00018142,60]
[420858552,1776648641661,-783.2683826,0.00018203,120]
[420858553,1776648641671,-461.67526834,0.00018218,2]
[420858554,1776648641682,-537.6845,0.00018218,2]
[420858555,1776648641692,-537.6845,0.00018218,2]
[420858556,1776648641703,-2150.738,0.00018218,2]
[420858557,1776648641712,-600.0,0.00018257,2]
[420858558,1776648641723,-557.5788265,0.00018273,2]
[420858559,1776648641736,-160.0,0.00018285,7]
[420858560,1776648641746,-160.0,0.00018285,2]
[420858561,1776648641756,-16054.671467,0.00018285,7]
[420858562,1776648641766,-996.261511,0.00018285,2]
[420858563,1776648641776,-31949.342935,0.00018285,7]
[420858564,1776648641786,-1832.523022,0.00018285,2]
[420858565,1776648641796,-160.0,0.00018289,2]
[420858566,1776648641806,-325.2970195,0.00018294,2]
[420858567,1776648641816,-578.20924308,0.00018328,2]
[420858568,1776648641827,-455.701244,0.00018341,2]
[420858569,1776648641837,-1034.24517994,0.0001835,60]
[420858570,1776648641847,-1500.0,0.00018368,2]
[420858571,1776648641857,-500.0,0.00018368,2]
[420858572,1776648641867,-710.58936389,0.00018368,2]
[420858573,1776648641876,-599.60298507,0.00018383,2]
[420858574,1776648641886,-621.78829552,0.00018438,2]
[420858575,1776648641896,-2040.41367392,0.00018444,2]
[420858576,1776648641906,-644.79446246,0.00018493,2]
[420858577,1776648641916,-783.2683826,0.00018496,120]
[420858578,1776648641925,-668.65185757,0.00018548,2]
[420858579,1776648641937,-1034.24517994,0.00018559,60]
[420858580,1776648641947,-491.115,0.00018586,2]
[420858581,1776648641956,-693.3919763,0.00018603,2]
[420858582,1776648641966,-719.04747942,0.00018658,2]
[420858583,1776648641975,-745.65223616,0.00018713,2]
[420858584,1776648641985,-2040.41367392,0.00018761,2]
[420858585,1776648641995,-372.50342352,0.00018766,2]
[420858586,1776648642005,-2230.315306,0.00018766,2]
[420858587,1776648642015,-1034.24517994,0.00018768,60]
[420858588,1776648642024,-321.63980633,0.00018768,2]
[420858589,1776648642034,-5015.59786731,0.00018794,2]
[420858590,1776648642043,-3625.183931,0.00018883,7]
[420858591,1776648642053,-3501.1,0.000189,2]
[420858592,1776648642063,-791.0,0.000189,2]
[420858593,1776648642074,-1034.24517994,0.00018977,60]
[420858594,1776648642083,-341.5,0.00018992,2]
[420858595,1776648642093,-464.0,0.00019,2]
[420858596,1776648642103,-165.0,0.00019,2]
[420858597,1776648642112,-310.0,0.00019,2]
[420858598,1776648642122,-202.0,0.00019,2]
[420858599,1776648642132,-427.0,0.00019,2]
[420858600,1776648642142,-608.0,0.00019,2]
[420858601,1776648642152,-225.38977988,0.00019029,2]
[420858602,1776648642162,-300.0,0.00019041,4]
[420858603,1776648642172,-300.0,0.00019041,5]
[420858604,1776648642182,-4766.35096259,0.00019063,2]
[420858605,1776648642192,-300.0,0.00019068,5]
[420858606,1776648642202,-300.0,0.00019068,5]
[420858607,1776648642212,-300.0,0.00019068,5]
[420858608,1776648642222,-250.0,0.00019068,5]
[420858609,1776648642231,-199.0,0.00019068,5]
[420858610,1776648642240,-2040.41367392,0.00019078,2]
[420858611,1776648642250,-324.994029,0.00019116,2]
[420858612,1776648642260,-324.6696444,0.00019116,2]
[420858613,1776648642270,-325.2970195,0.00019116,2]
[420858614,1776648642279,-325.2893202,0.00019116,2]
[420858615,1776648642289,-500.0,0.00019173,2]
[420858616,1776648642298,-462.07690697,0.00019173,2]
[420858617,1776648642308,-500.0,0.00019173,2]
[420858618,1776648642318,-500.0,0.00019173,2]
[420858619,1776648642328,-500.0,0.00019173,2]
[420858620,1776648642338,-500.0,0.00019173,2]